bitfinex/quotes_ETHUSD_20250708
["timestamp","ask_amount","ask_price","bid_price","bid_amount"]
[1751946925241,0.0423323,2542.5,2542.4,0.746]
[1751946925452,0.0423323,2542.5,2542.4,1.34]
[1751946926046,0.8343323,2542.5,2542.4,0.746]
[1751946926238,0.8343323,2542.5,2542.4,1.34]
[1751946927746,0.8343323,2542.5,2542.4,0.196]
[1751946927960,1.91776553,2542.5,2542.4,0.196]
[1751946928450,1.91876553,2542.5,2542.4,0.196]
[1751946931147,0.7847,2542.4,2542.2,0.196]
[1751946932234,0.8036,2542.3,2542.2,0.196]
[1751946937056,0.8036,2542.3,2542.0,0.002]
[1751946938156,6.75387066,2542.3,2542.0,0.002]
[1751946938334,0.9871,2542.1,2542.0,0.002]
[1751946939154,20.87112621,2542.1,2542.0,0.002]
[1751946939354,16.93737066,2542.1,2542.0,0.002]
[1751946942984,20.87112621,2542.1,2542.0,0.002]
[1751946943143,21.46512621,2542.1,2542.0,0.002]
[1751946943463,22.70499881,2542.1,2542.0,0.002]
[1751946947963,24.45326085,2542.1,2542.0,0.002]
[1751946950847,0.7929,2541.5,2541.4,0.002]
[1751946951049,17.33717066,2541.5,2541.4,0.002]
[1751946951285,18.4058887,2541.5,2541.4,0.002]
[1751946951438,12.45561804,2541.5,2541.4,0.002]
[1751946952984,12.65079672,2541.5,2541.4,0.002]
[1751946953749,12.45561804,2541.5,2541.4,0.002]
[1751946955684,10.594,2541.5,2541.4,0.002]
[1751946956686,10.0,2541.5,2541.4,0.002]
[1751946962170,0.7643,2541.9,2541.4,0.002]
[1751946962361,0.594,2541.8,2541.4,0.198]
[1751946965474,1.3583,2541.9,2541.4,0.198]
[1751946965891,0.594,2541.9,2541.5,0.7552]
[1751946968609,0.79,2542.0,2541.5,0.7552]
[1751946968904,0.196,2542.0,2541.5,0.7552]
[1751946969109,0.79,2542.0,2541.5,0.7552]
[1751946969323,0.196,2542.0,2541.5,1.2990026]
[1751946969615,0.79,2542.2,2541.7,0.196]
[1751946970710,0.8192,2542.1,2541.5,0.7552]
[1751946970916,0.196,2542.0,2541.6,0.196]
[1751946971116,1.35692,2542.0,2541.6,0.196]
[1751946972102,1.35692,2542.0,2541.6,0.198]
[1751946985333,1.35692,2542.0,2541.6,1.005]
[1751946995346,10.0,2541.9,2541.6,1.005]
[1751946995561,1.35692,2542.0,2541.6,1.005]
[1751946995915,0.196,2542.0,2541.6,1.005]
[1751946997054,0.197,2542.0,2541.6,1.005]
[1751947004074,0.001,2542.0,2541.9,1.0067]
[1751947019664,0.001,2542.0,2541.9,1.0087]
[1751947020370,0.001,2542.0,2541.9,0.198]
[1751947031680,12.24504075,2542.0,2541.9,0.002]
[1751947032966,1.47724075,2542.0,2541.9,0.002]
[1751947033172,0.001,2542.0,2541.9,0.002]
[1751947038190,10.001,2542.0,2541.9,0.002]
[1751947039261,10.7721,2542.0,2541.9,0.002]
[1751947042000,11.11786061,2542.0,2541.9,0.002]
[1751947043073,10.7721,2542.0,2541.9,0.002]
[1751947043266,11.11773898,2542.0,2541.9,0.002]
[1751947044075,10.7721,2542.0,2541.9,0.002]
[1751947048471,10.9681,2542.0,2541.9,0.002]
[1751947048671,10.9181,2542.0,2541.9,0.002]
[1751947050615,14.8520103,2542.0,2541.9,0.002]
[1751947050814,16.6140676,2542.0,2541.9,0.002]
[1751947053799,17.44056476,2542.0,2541.9,0.002]
[1751947054189,16.02449608,2542.0,2541.9,0.002]
[1751947054515,21.37357529,2542.0,2541.9,0.002]
[1751947055017,17.43966499,2542.0,2541.9,0.002]
[1751947055218,21.37357529,2542.0,2541.9,0.002]
[1751947055816,17.43966499,2542.0,2541.9,0.002]
[1751947056284,21.37357529,2542.0,2541.9,0.002]
[1751947056697,17.43966499,2542.0,2541.9,0.002]
[1751947057096,13.27325753,2542.0,2541.9,0.002]
[1751947057298,0.001,2542.1,2541.9,0.002]
[1751947057513,0.594,2542.0,2541.9,0.002]
[1751947057689,0.54499452,2542.1,2541.9,0.002]
[1751947057690,0.197,2542.1,2541.9,0.002]
[1751947057890,0.594,2542.0,2541.9,0.002]
[1751947058084,0.791,2542.1,2541.9,0.002]
[1751947058420,0.001,2542.1,2542.0,0.8053]
[1751947060798,0.001,2542.1,2541.9,0.198]
[1751947065537,0.001,2542.1,2541.9,0.002]
[1751947066401,10.0,2542.0,2541.9,0.002]
[1751947067830,11.0023,2542.0,2541.9,0.002]
[1751947069740,1.0023,2542.0,2541.9,0.002]
[1751947078451,0.196,2542.0,2541.9,0.002]
[1751947095553,0.54410479,2542.0,2541.9,0.002]
[1751947096158,5.30551497,2542.0,2541.9,0.002]
[1751947096753,6.72328707,2542.0,2541.9,0.002]
[1751947096960,7.48788707,2542.0,2541.9,0.002]
[1751947098659,11.42179737,2542.0,2541.9,0.002]
[1751947098858,7.48788707,2542.0,2541.9,0.002]
[1751947104163,6.72328707,2542.0,2541.9,0.002]
[1751947106342,6.72417739,2542.0,2541.9,0.002]
[1751947107163,6.72517739,2542.0,2541.9,0.002]
[1751947110438,5.30740529,2542.0,2541.9,0.002]
[1751947113582,6.72503727,2542.0,2541.9,0.002]
[1751947114565,5.30740529,2542.0,2541.9,0.002]
[1751947115246,5.90140529,2542.0,2541.9,0.002]
[1751947118067,5.55241018,2542.0,2541.9,0.002]
[1751947118273,5.90187093,2542.0,2541.9,0.002]
[1751947120946,5.55241018,2542.0,2541.9,0.002]
[1751947121248,5.90209272,2542.0,2541.9,0.002]
[1751947121465,0.54668254,2542.0,2541.9,0.002]
[1751947121774,0.595,2542.0,2541.9,0.002]
[1751947128346,0.001,2542.0,2541.9,0.002]
[1751947135286,14.76241018,2542.0,2541.9,0.002]
[1751947137383,15.10904512,2542.0,2541.9,0.002]
[1751947138488,15.10906264,2542.0,2541.9,0.002]
[1751947138989,14.76241018,2542.0,2541.9,0.002]
[1751947142296,15.10821565,2542.0,2541.9,0.002]
[1751947145076,10.001,2542.0,2541.9,0.002]
[1751947155801,0.001,2542.0,2541.9,5.49126506]
[1751947156102,0.001,2542.0,2541.9,6.5204668]
[1751947157378,0.001,2542.0,2541.9,6.55980745]
[1751947158221,0.001,2542.0,2541.9,6.5204668]
[1751947161173,0.001,2542.0,2541.9,11.28187698]
[1751947164700,0.001,2542.0,2541.9,11.87487698]
[1751947170715,0.001,2542.0,2541.9,7.1134668]
[1751947175684,0.001,2542.0,2541.9,3.17940174]
[1751947178123,0.001,2542.0,2541.9,2.37020174]
[1751947178418,0.001,2542.0,2541.9,0.198]
[1751947178635,5.57531018,2542.0,2541.9,0.791]
[1751947178836,5.57531018,2542.0,2541.9,0.198]
[1751947179005,15.57531018,2542.0,2541.9,0.002]
[1751947179202,17.1329412,2542.0,2541.9,0.002]
[1751947187042,12.37153102,2542.0,2541.9,0.002]
[1751947190704,17.1329412,2542.0,2541.9,0.002]
[1751947192855,12.37153102,2542.0,2541.9,0.002]
[1751947193280,12.96453102,2542.0,2541.9,0.002]
[1751947202034,16.89844132,2542.0,2541.9,0.002]
[1751947202246,12.96453102,2542.0,2541.9,0.002]
[1751947202632,16.89844132,2542.0,2541.9,0.002]
[1751947203061,13.31332863,2542.0,2541.9,0.002]
[1751947203566,19.03073079,2542.0,2541.9,0.002]
[1751947203761,15.09682049,2542.0,2541.9,0.002]
[1751947203930,17.61569986,2542.0,2541.9,0.002]
[1751947204136,19.03067578,2542.0,2541.9,0.002]
[1751947204546,19.03088576,2542.0,2541.9,0.002]
[1751947205336,22.23780645,2542.0,2541.9,0.002]
[1751947206661,22.23779406,2542.0,2541.9,0.002]
[1751947207336,20.46987337,2542.0,2541.9,0.002]
[1751947207535,4.71897463,2541.7,2541.6,0.002]
[1751947207757,24.14865456,2541.7,2541.6,0.002]
[1751947210365,24.14865456,2541.7,2541.5,0.002]
[1751947210575,16.85646148,2541.6,2541.5,0.002]
[1751947213289,17.44946148,2541.6,2541.5,0.002]
[1751947213442,17.44931232,2541.6,2541.5,0.002]
[1751947213637,19.00694334,2541.6,2541.5,0.002]
[1751947216392,19.00649793,2541.6,2541.5,0.002]
[1751947219390,19.01306597,2541.6,2541.5,0.002]
[1751947222495,19.01283449,2541.6,2541.5,0.002]
[1751947225392,19.01285727,2541.6,2541.5,0.002]
[1751947226199,19.01285727,2541.6,2541.0,0.002]
[1751947226200,14.7298036,2541.1,2541.0,0.002]
[1751947226400,21.27609186,2541.1,2541.0,0.002]
[1751947227170,22.71509186,2541.1,2541.0,0.002]
[1751947227493,24.85185673,2541.1,2541.0,0.002]
[1751947228009,25.14180875,2541.1,2541.0,0.002]
[1751947228174,26.69943977,2541.1,2541.0,0.002]
[1751947228982,13.93561336,2540.9,2540.8,0.002]
[1751947229185,22.61899034,2540.9,2540.8,0.002]
[1751947229977,21.20539446,2540.9,2540.8,0.002]
[1751947230274,3.93602712,2540.7,2540.5,0.0423323]
[1751947230479,0.593,2540.6,2540.5,0.0423323]
[1751947231704,10.75095962,2540.8,2540.5,0.0423323]
[1751947231892,0.1968,2540.6,2540.5,0.0423323]
[1751947232203,0.1968,2540.6,2540.5,0.7984323]
[1751947232393,0.7908,2540.6,2540.5,0.7984323]
[1751947232575,0.28995202,2541.1,2540.5,0.7984323]
[1751947232775,10.95696095,2541.0,2540.5,0.7984323]
[1751947232979,14.2353881,2541.1,2540.5,0.7984323]
[1751947233166,2.37083438,2541.0,2540.5,0.7984323]
[1751947233366,2.00787722,2541.0,2540.5,0.7984323]
[1751947234316,0.36321673,2540.9,2540.5,0.7984323]
[1751947234499,0.594,2540.8,2540.5,0.7984323]
[1751947235474,0.79478772,2540.8,2540.5,0.7984323]
[1751947237202,0.594,2540.8,2540.5,0.7984323]
[1751947238969,10.0,2540.7,2540.5,0.0423323]
[1751947240692,0.594,2540.8,2540.5,0.0423323]
[1751947241927,0.30008276,2541.1,2540.6,0.7936]
[1751947242221,0.95878549,2541.0,2540.6,0.7936]
[1751947242391,0.95878549,2540.9,2540.6,0.7936]
[1751947242592,0.196,2540.8,2540.6,0.7936]
[1751947254230,0.36478018,2540.7,2540.6,0.7936]
[1751947257218,0.36397746,2540.7,2540.6,0.7936]
[1751947260615,0.196,2540.8,2540.6,0.7936]
[1751947265622,0.3624877,2540.7,2540.6,0.7936]
[1751947268728,16.31577596,2540.7,2540.5,0.0443323]
[1751947268933,1.62338728,2540.6,2540.5,0.0443323]
[1751947271332,17.74416299,2540.6,2540.5,0.0443323]
[1751947272541,13.0418849,2540.6,2540.5,0.0443323]
[1751947273346,13.04144994,2540.6,2540.5,0.0443323]
[1751947274268,11.97708978,2540.6,2540.5,0.0443323]
[1751947274555,10.55948781,2540.6,2540.5,0.0443323]
[1751947275059,10.36268781,2540.6,2540.5,0.0443323]
[1751947275258,10.36268781,2540.6,2540.5,0.8579323]
[1751947278141,10.36268781,2540.6,2540.5,0.0443323]
[1751947278536,10.0,2540.6,2540.5,0.0443323]
[1751947283878,11.0197,2540.6,2540.5,0.0443323]
[1751947284054,11.2165,2540.6,2540.5,0.0443323]
[1751947284259,11.58068301,2540.6,2540.5,0.0443323]
[1751947284856,10.36418301,2540.6,2540.5,0.0443323]
[1751947285763,10.0,2540.6,2540.5,0.0443323]
[1751947286076,10.36417022,2540.6,2540.5,0.0443323]
[1751947288787,10.36365771,2540.6,2540.5,0.0443323]
[1751947289080,10.0,2540.6,2540.5,0.0443323]
[1751947289582,10.3688846,2540.6,2540.5,0.0443323]
[1751947291070,10.0,2540.6,2540.5,0.0443323]
[1751947291276,10.36888956,2540.6,2540.5,0.0443323]
[1751947291458,10.0,2540.6,2540.5,0.0443323]
[1751947292966,10.3689124,2540.6,2540.5,0.0443323]
[1751947293164,10.0,2540.6,2540.5,0.0443323]
[1751947293362,10.36903069,2540.6,2540.5,0.0443323]
[1751947293582,10.0,2540.6,2540.5,0.0443323]
[1751947293989,10.36903066,2540.6,2540.5,0.0443323]
[1751947299790,11.87861181,2540.6,2540.5,0.0443323]
[1751947300497,18.04554039,2540.6,2540.5,0.0443323]
[1751947304119,14.1094623,2540.6,2540.5,0.0443323]
[1751947304314,18.04554039,2540.6,2540.5,0.0443323]
[1751947306088,18.04104039,2540.6,2540.5,0.0443323]
[1751947311314,14.1049623,2540.6,2540.5,0.0443323]
[1751947313134,18.04104039,2540.6,2540.5,0.0443323]
[1751947315805,14.1049623,2540.6,2540.5,0.0443323]
[1751947316128,18.04104039,2540.6,2540.5,0.0443323]
[1751947318724,14.1049623,2540.6,2540.5,0.0443323]
[1751947319240,18.04104039,2540.6,2540.5,0.0443323]
[1751947321842,18.63504039,2540.6,2540.5,0.0443323]
[1751947322360,20.40704285,2540.6,2540.5,0.0443323]
[1751947322529,18.63504039,2540.6,2540.5,0.0443323]
[1751947323115,20.99032706,2540.6,2540.5,0.0443323]
[1751947325248,22.63139199,2540.6,2540.5,0.0443323]
[1751947325955,20.27610532,2540.6,2540.5,0.0443323]
[1751947327525,22.04645599,2540.6,2540.5,0.0443323]
[1751947327730,20.27610532,2540.6,2540.5,0.0443323]
[1751947330335,22.63139199,2540.6,2540.5,0.0443323]
[1751947331821,20.27610532,2540.6,2540.5,0.0443323]
[1751947334043,19.90707466,2540.6,2540.5,0.0443323]
[1751947339271,19.90607466,2540.6,2540.5,0.0443323]
[1751947344343,18.46507466,2540.6,2540.5,0.0443323]
[1751947348272,20.82036133,2540.6,2540.5,0.0443323]
[1751947352380,18.46507466,2540.6,2540.5,0.0443323]
[1751947353753,18.83455803,2540.6,2540.5,0.0443323]
[1751947356270,18.83461565,2540.6,2540.5,0.0443323]
[1751947356680,18.83461569,2540.6,2540.5,0.0443323]
[1751947357769,18.83461693,2540.6,2540.5,0.0443323]
[1751947360560,18.83461908,2540.6,2540.5,0.0443323]
[1751947361587,22.36754909,2540.6,2540.5,0.0443323]
[1751947363590,22.36752101,2540.6,2540.5,0.0443323]
[1751947374804,27.13721687,2540.6,2540.5,0.0443323]
[1751947375117,27.13711972,2540.6,2540.5,0.0443323]
[1751947378015,26.93805479,2540.6,2540.5,0.0443323]
[1751947378610,14.73078797,2540.4,2540.3,0.002]
[1751947378786,24.24583428,2540.4,2540.3,0.002]
[1751947379418,3.93685287,2540.1,2540.0,0.2353323]
[1751947379717,21.08751841,2540.1,2540.0,0.2353323]
[1751947380598,17.15066554,2540.1,2540.0,0.2353323]
[1751947381116,21.08751841,2540.1,2540.0,0.2353323]
[1751947381423,22.59709956,2540.1,2540.0,0.2353323]
[1751947385926,22.5971161,2540.1,2540.0,0.2353323]
[1751947387229,29.14009635,2540.1,2540.0,0.2353323]
[1751947387431,30.52559273,2540.1,2540.0,0.2353323]
[1751947387640,28.16121196,2540.1,2540.0,0.2353323]
[1751947387950,28.16121196,2540.1,2540.0,0.04537503]
[1751947387951,31.69414197,2540.1,2540.0,0.04537503]
[1751947388394,31.69414197,2540.1,2539.4,0.002]
[1751947388395,13.93762797,2539.6,2539.4,0.002]
[1751947388596,21.88731954,2539.6,2539.4,0.002]
[1751947388819,23.08376605,2539.6,2539.4,0.002]
[1751947389231,13.93778302,2539.5,2539.4,0.002]
[1751947389427,18.48690466,2539.5,2539.4,0.002]
[1751947389603,15.92139521,2539.5,2539.4,0.002]
[1751947389818,19.57113285,2539.5,2539.4,0.002]
[1751947390015,12.35265923,2539.5,2539.4,0.002]
[1751947390217,0.28919289,2539.6,2539.4,0.785]
[1751947390417,1.61312163,2539.8,2539.4,4.72285725]
[1751947390615,1.77110945,2539.9,2539.6,0.1968]
[1751947390616,0.1968,2539.9,2539.6,0.1968]
[1751947390820,12.20712163,2539.9,2539.7,0.783]
[1751947391032,5.37646722,2540.4,2539.7,0.783]
[1751947391033,1.77110945,2540.2,2539.8,0.783]
[1751947391342,3.73260125,2540.6,2540.0,0.783]
[1751947391343,0.96281579,2540.1,2540.0,0.783]
[1751947391504,0.594,2540.1,2540.0,0.783]
[1751947391703,0.9627722,2540.1,2540.0,0.783]
[1751947392095,0.3687722,2540.1,2540.0,0.783]
[1751947392604,0.594,2540.2,2540.0,0.783]
[1751947393804,1.08487241,2540.3,2540.0,0.783]
[1751947395703,0.7908,2540.3,2540.0,0.783]
[1751947396301,0.1968,2540.3,2540.0,1.27470792]
[1751947396526,0.7908,2540.5,2540.1,0.9954]
[1751947396731,0.72855925,2540.4,2540.1,0.9954]
[1751947397017,0.7908,2540.5,2540.1,0.9954]
[1751947397332,0.36850802,2540.4,2540.1,0.9954]
[1751947397538,0.36850802,2540.4,2540.3,0.7986]
[1751947398651,0.001,2540.8,2540.3,0.7986]
[1751947398652,1.41589394,2540.8,2540.3,0.7986]
[1751947398851,0.7282804,2540.7,2540.3,1.0104]
[1751947399021,0.791,2540.8,2540.3,1.0104]
[1751947399216,0.791,2540.8,2540.4,0.8136]
[1751947402924,10.0,2540.7,2540.4,0.8136]
[1751947403123,10.0,2540.5,2540.4,0.8136]
[1751947403325,10.72411898,2540.5,2540.0,0.8136]
[1751947403537,10.0,2540.1,2540.0,0.8136]
[1751947404349,10.1968,2540.3,2540.0,0.8136]
[1751947407045,14.13335052,2540.3,2539.8,1.017]
[1751947407372,10.1968,2540.3,2539.8,1.017]
[1751947407749,0.36805731,2540.2,2539.8,1.017]
[1751947408075,10.1968,2540.3,2539.8,1.017]
[1751947408372,0.1968,2540.3,2539.8,1.017]
[1751947408676,0.1968,2540.3,2539.8,1.51246043]
[1751947408957,0.1968,2540.3,2539.8,1.017]
[1751947412049,0.1978,2540.3,2539.8,1.017]
[1751947417664,10.0,2540.1,2539.8,0.8202]
[1751947417870,10.1968,2540.1,2539.8,0.8202]
[1751947420043,0.36858687,2540.0,2539.8,0.8202]
[1751947420373,6.69486503,2539.9,2539.5,0.8217]
[1751947420570,0.36858687,2539.8,2539.5,0.8217]
[1751947421772,10.0,2539.7,2539.5,0.8217]
[1751947426650,10.595,2539.9,2539.5,0.8217]
[1751947426850,0.36843227,2539.8,2539.5,0.8217]
[1751947429083,0.595,2539.9,2539.5,0.8217]
[1751947429288,0.36843085,2539.8,2539.5,0.8217]
[1751947429968,0.595,2539.9,2539.5,0.8217]
[1751947430169,0.3685159,2539.8,2539.5,0.8217]
[1751947430369,0.3685159,2539.8,2539.5,1.30181046]
[1751947430752,0.3685159,2539.8,2539.5,0.8217]
[1751947434674,10.3685159,2539.7,2539.5,0.8217]
[1751947434876,0.3685159,2539.6,2539.5,0.8217]
[1751947435076,10.1968,2539.7,2539.5,0.8217]
[1751947435795,0.1968,2539.7,2539.5,0.8217]
[1751947439889,0.36882999,2539.6,2539.5,0.8217]
[1751947440396,0.36882999,2539.6,2539.5,0.002]
[1751947441503,0.1968,2539.7,2539.5,0.002]
[1751947441814,0.36886206,2539.6,2539.5,0.002]
[1751947441966,0.36885637,2539.6,2539.5,0.002]
[1751947442172,11.19,2540.1,2539.5,0.7637]
[1751947442373,0.1968,2539.9,2539.5,0.7637]
[1751947442689,1.55986971,2539.8,2539.5,0.7637]
[1751947442995,1.191,2539.8,2539.5,0.7637]
[1751947443202,0.36889496,2539.7,2539.5,0.7637]
[1751947443400,0.36889496,2539.6,2539.5,0.7637]
[1751947443599,1.191,2539.8,2539.5,0.7637]
[1751947443802,1.16484277,2539.7,2539.5,0.7637]
[1751947444004,0.7959185,2539.7,2539.5,0.7637]
[1751947445998,1.191,2539.8,2539.5,0.7637]
[1751947446205,0.36904816,2539.7,2539.5,0.7637]
[1751947446498,1.191,2539.8,2539.5,0.7637]
[1751947446697,0.36913242,2539.7,2539.5,0.7637]
[1751947446897,1.191,2539.8,2539.5,0.7637]
[1751947447098,0.36913126,2539.7,2539.5,0.7637]
[1751947447300,1.191,2539.8,2539.5,0.7637]
[1751947447509,0.3692424,2539.7,2539.5,0.7637]
[1751947447685,1.191,2539.8,2539.5,0.7637]
[1751947447888,10.7343296,2539.7,2539.5,0.7637]
[1751947448087,0.36924274,2539.6,2539.5,0.7637]
[1751947448919,0.3692993,2539.6,2539.5,0.7637]
[1751947450818,0.73457082,2539.6,2539.5,0.002]
[1751947451108,0.3692993,2539.6,2539.5,0.002]
[1751947452378,0.73460007,2539.6,2539.5,0.002]
[1751947453122,0.3692993,2539.6,2539.5,0.002]
[1751947453327,0.73460577,2539.6,2539.5,0.002]
[1751947453826,0.36530647,2539.6,2539.5,0.002]
[1751947454122,0.3694738,2539.6,2539.5,0.002]
[1751947455990,1.5594738,2539.6,2539.5,0.002]
[1751947457024,1.92288961,2539.6,2539.5,0.002]
[1751947459532,12.95093162,2539.6,2539.5,0.002]
[1751947464020,12.21804201,2539.6,2539.5,0.002]
[1751947464227,12.95121942,2539.6,2539.5,0.002]
[1751947464524,11.92317741,2539.6,2539.5,0.002]
[1751947467920,23.24609291,2539.6,2539.5,0.002]
[1751947468124,24.00929291,2539.6,2539.5,0.002]
[1751947468435,25.45329291,2539.6,2539.5,0.002]
[1751947469208,25.78156899,2539.6,2539.5,0.002]
[1751947469411,27.22556899,2539.6,2539.5,0.002]
[1751947470202,26.07358972,2539.6,2539.5,0.002]
[1751947470443,25.74531364,2539.6,2539.5,0.002]
[1751947472611,25.7448883,2539.6,2539.5,0.002]
[1751947473137,27.51716438,2539.6,2539.5,0.002]
[1751947473306,25.7448883,2539.6,2539.5,0.002]
[1751947473510,27.51716438,2539.6,2539.5,0.002]
[1751947474814,25.7448883,2539.6,2539.5,0.002]
[1751947475842,14.90888302,2539.5,2539.4,0.002]
[1751947476138,18.50560622,2539.5,2539.4,0.002]
[1751947477139,19.91465653,2539.5,2539.4,0.002]
[1751947477341,20.2820349,2539.5,2539.4,0.002]
[1751947478264,18.50975882,2539.5,2539.4,0.002]
[1751947479261,18.50975882,2539.5,2539.0,0.0423323]
[1751947479262,14.71270337,2539.1,2539.0,0.0423323]
[1751947479424,22.60592444,2539.1,2539.0,0.0423323]
[1751947479844,18.66752107,2539.1,2539.0,0.0423323]
[1751947482031,17.89322107,2539.1,2539.0,0.0423323]
[1751947484252,17.89201222,2539.1,2539.0,0.0423323]
[1751947485278,21.83041559,2539.1,2539.0,0.0423323]
[1751947486266,17.89201222,2539.1,2539.0,0.0423323]
[1751947487966,11.55831745,2539.1,2539.0,0.0423323]
[1751947488279,11.19,2539.1,2539.0,0.0423323]
[1751947488579,11.55835651,2539.1,2539.0,0.0423323]
[1751947491576,11.55835651,2539.1,2539.0,0.8061323]
[1751947491577,11.19,2539.1,2539.0,0.8061323]
[1751947492151,11.19,2539.1,2539.0,1.30444367]
[1751947492353,1.19,2539.2,2539.1,0.7638]
[1751947492556,1.19,2539.3,2539.1,0.7638]
[1751947492748,1.19,2539.4,2539.1,0.7638]
[1751947492949,1.19,2539.4,2539.3,0.7638]
[1751947495754,1.3868,2539.5,2539.3,0.7638]
[1751947497562,1.19,2539.5,2539.3,0.7638]
[1751947497768,1.19,2539.5,2539.3,0.9606]
[1751947498682,1.19,2539.5,2539.3,4.89866964]
[1751947498977,0.001,2539.5,2539.3,4.89866964]
[1751947499478,0.001,2539.5,2539.4,0.49380521]
[1751947500280,0.001,2539.5,2539.4,5.2320433]
[1751947500645,0.001,2539.5,2539.4,5.27142268]
[1751947500850,0.001,2539.5,2539.4,5.46822268]
[1751947501162,0.001,2539.5,2539.4,1.53028459]
[1751947501555,0.001,2539.5,2539.4,5.4288433]
[1751947503082,0.001,2539.5,2539.4,1.49090521]
[1751947503991,0.001,2539.5,2539.4,0.9971]
[1751947514185,0.001,2539.5,2539.4,0.1968]
[1751947518832,10.0,2539.4,2539.0,0.0443323]
[1751947519010,2.0203,2539.5,2539.0,0.0443323]
[1751947519175,0.5655301,2539.4,2539.0,0.0443323]
[1751947519375,0.3688274,2539.3,2539.0,0.0443323]
[1751947529819,14.13474642,2539.4,2539.0,0.0443323]
[1751947530017,0.36883269,2539.3,2539.0,0.0443323]
[1751947532724,10.1968,2539.4,2539.0,0.0443323]
[1751947533030,0.73783992,2539.3,2539.1,0.774]
[1751947533321,10.1968,2539.4,2539.1,0.774]
[1751947533517,2.27044179,2539.3,2539.1,0.774]
[1751947533816,1.53246741,2539.3,2539.0,0.0443323]
[1751947534015,15.9663164,2539.1,2539.0,0.0443323]
[1751947534227,20.64274169,2539.1,2539.0,0.0443323]
[1751947534402,22.05971885,2539.1,2539.0,0.0443323]
[1751947534590,21.41886492,2539.1,2539.0,0.0443323]
[1751947534988,22.83579798,2539.1,2539.0,0.0443323]
[1751947535189,23.65599798,2539.1,2539.0,0.0443323]
[1751947535590,19.7174969,2539.1,2539.0,0.0443323]
[1751947535792,23.65590027,2539.1,2539.0,0.0443323]
[1751947537503,23.65560255,2539.1,2539.0,0.0443323]
[1751947540924,18.30026612,2539.1,2539.0,0.0443323]
[1751947541325,22.23866949,2539.1,2539.0,0.0443323]
[1751947541823,22.23821214,2539.1,2539.0,0.0443323]
[1751947542222,18.29980877,2539.1,2539.0,0.0443323]
[1751947542525,11.51329237,2539.1,2539.0,0.0443323]
[1751947545138,12.12296914,2539.1,2539.0,0.0443323]
[1751947548232,10.56538457,2539.1,2539.0,0.0443323]
[1751947548731,10.0,2539.1,2539.0,0.0443323]
[1751947549413,10.3688426,2539.1,2539.0,0.0443323]
[1751947549613,10.0,2539.1,2539.0,0.0443323]
[1751947551033,0.001,2539.5,2539.1,0.8109]
[1751947551237,0.73768762,2539.4,2539.1,0.8109]
[1751947551435,0.001,2539.5,2539.2,0.1968]
[1751947551814,0.36882609,2539.4,2539.2,0.1968]
[1751947552014,0.36882609,2539.3,2539.2,0.1968]
[1751947552243,0.36882609,2539.4,2539.2,0.74600847]
[1751947552447,0.001,2539.5,2539.2,0.74600847]
[1751947552751,0.36979423,2539.5,2539.2,0.74600847]
[1751947555320,0.001,2539.5,2539.2,0.1968]
[1751947561653,0.001,2539.5,2539.3,4.71527725]
[1751947561831,0.001,2539.5,2539.3,4.75465818]
[1751947562028,0.001,2539.5,2539.3,4.75460291]
[1751947562347,0.001,2539.5,2539.4,0.9648]
[1751947562547,0.001,2539.5,2539.4,1.85283007]
[1751947562723,0.001,2539.5,2539.4,0.9648]
[1751947564644,0.001,2539.5,2539.4,4.90273809]
[1751947565651,0.001,2539.5,2539.4,4.94211747]
[1751947566433,0.001,2539.5,2539.4,10.90843387]
[1751947566632,0.001,2539.5,2539.4,10.86905449]
[1751947566828,0.001,2539.5,2539.4,12.34976695]
[1751947567062,0.001,2539.5,2539.4,6.38345055]
[1751947567362,0.001,2539.5,2539.4,6.42282993]
[1751947569561,0.001,2539.5,2539.4,7.01682993]
[1751947573650,0.001,2539.5,2539.4,7.56682993]
[1751947573867,0.001,2539.5,2539.4,13.53314633]
[1751947574072,0.001,2539.5,2539.4,13.49376695]
[1751947574270,0.001,2539.5,2539.4,7.52745055]
[1751947574462,0.001,2539.5,2539.4,7.56682993]
[1751947575481,0.001,2539.5,2539.4,7.52745055]
[1751947576470,0.001,2539.5,2539.4,7.56682993]
[1751947579691,0.001,2539.5,2539.4,7.52745055]
[1751947584259,0.001,2539.5,2539.4,8.96945055]
[1751947586197,0.001,2539.5,2539.4,8.97145055]
[1751947622903,0.001,2539.5,2539.4,13.73846549]
[1751947634651,0.001,2539.5,2539.4,23.73846549]
[1751947635150,0.001,2539.5,2539.4,21.70246549]
[1751947635440,0.001,2539.5,2539.4,18.20245055]
[1751947636443,0.001,2539.5,2539.4,22.96946549]
[1751947638246,0.001,2539.5,2539.4,20.93446549]
[1751947638543,0.001,2539.5,2539.4,22.96946549]
[1751947661458,0.001,2539.5,2539.4,18.20245055]
[1751947661761,0.001,2539.5,2539.4,22.96946549]
[1751947669579,0.001,2539.5,2539.4,23.79716549]
[1751947670971,0.001,2539.5,2539.4,22.96946549]
[1751947676462,0.001,2539.5,2539.4,23.74616549]
[1751947704623,0.001,2539.5,2539.4,22.96946549]
[1751947704994,0.001,2539.5,2539.4,0.1988]
[1751947704995,0.8271,2539.5,2539.4,0.1988]
[1751947705616,0.8271,2539.5,2539.4,0.7928]
[1751947706386,0.8271,2539.5,2539.4,4.73073809]
[1751947706582,0.8271,2539.5,2539.4,1.38217938]
[1751947707615,0.8271,2539.5,2539.4,5.32011747]
[1751947709149,0.001,2539.5,2539.4,5.28073809]
[1751947709298,0.001,2539.5,2539.4,6.79875646]
[1751947728114,0.001,2539.5,2539.4,1.3428]